bitfinex/quotes_ETHUSD_20241212
["timestamp","ask_amount","ask_price","bid_price","bid_amount"]
[1734027597077,0.2183532,3947.0,3945.9,0.17]
[1734027597303,0.55,3946.9,3945.9,0.17]
[1734027597896,0.55,3947.1,3945.9,0.17]
[1734027598907,0.8047,3947.2,3945.9,0.17]
[1734027599108,0.8047,3947.2,3946.0,1.0464]
[1734027599298,0.02534836,3947.7,3946.0,1.0464]
[1734027599299,0.55,3947.4,3946.0,1.0464]
[1734027599481,0.57534836,3947.4,3946.0,1.0464]
[1734027599881,0.7133632,3947.4,3946.0,1.0464]
[1734027600776,0.68801484,3947.4,3946.0,1.0464]
[1734027600978,0.68801484,3947.4,3946.4,0.16]
[1734027601614,0.7133632,3947.4,3946.4,0.16]
[1734027602275,0.68801484,3947.4,3946.4,0.16]
[1734027602471,0.7133632,3947.4,3946.4,0.16]
[1734027602810,0.15181632,3947.3,3946.4,0.16]
[1734027602999,0.57534836,3947.2,3946.4,0.16]
[1734027603514,0.55,3947.0,3946.4,0.16]
[1734027603718,0.02534836,3946.9,3946.4,0.16]
[1734027605913,0.55,3946.7,3946.4,0.16]
[1734027606145,0.55,3946.5,3946.4,0.16]
[1734027606489,1.30489125,3946.7,3946.4,0.16]
[1734027606749,1.86325253,3947.7,3946.5,1.29021318]
[1734027607044,1.05845253,3947.9,3946.6,0.9861]
[1734027607180,1.86325253,3948.1,3947.2,0.16]
[1734027607379,1.20099587,3948.0,3947.3,0.9861]
[1734027607580,0.34485465,3948.0,3947.3,0.9861]
[1734027608187,0.55,3947.9,3947.3,0.9861]
[1734027608385,0.34485465,3948.0,3947.3,0.9861]
[1734027608714,1.05845253,3948.3,3947.3,0.9861]
[1734027608879,1.28421457,3948.4,3947.3,0.9861]
[1734027608880,3.14770096,3948.4,3947.3,0.9861]
[1734027609079,0.8048,3948.4,3947.3,0.9861]
[1734027609513,1.05845253,3948.6,3947.3,0.9861]
[1734027609514,1.88860089,3948.6,3947.3,0.9861]
[1734027609714,0.85602963,3948.5,3947.3,0.9861]
[1734027609914,2.14006109,3948.5,3947.3,0.9861]
[1734027610079,0.85602963,3948.4,3947.3,0.9861]
[1734027610279,0.55,3948.5,3947.3,0.9861]
[1734027610512,1.40598942,3948.5,3947.3,0.9861]
[1734027610713,0.85616981,3948.4,3947.3,0.9861]
[1734027610915,0.88151817,3948.4,3947.3,0.9861]
[1734027611215,1.40618059,3948.3,3947.3,0.9861]
[1734027611400,0.02534836,3948.2,3947.3,0.9861]
[1734027611588,0.55,3948.0,3947.3,0.9861]
[1734027612014,0.57534836,3948.2,3947.3,0.9861]
[1734027612219,0.85630082,3948.1,3947.3,0.9861]
[1734027612517,0.55,3948.2,3947.3,0.9861]
[1734027612737,0.55,3948.3,3947.3,0.9861]
[1734027612941,2.28326249,3948.3,3947.3,0.9861]
[1734027613139,0.55,3948.1,3947.3,0.9861]
[1734027613513,0.55,3948.2,3947.3,0.9861]
[1734027615246,1.40599181,3948.2,3947.3,0.9861]
[1734027615448,0.55,3948.2,3947.3,0.9861]
[1734027615643,0.9182101,3948.2,3947.3,0.9861]
[1734027616144,0.94355846,3948.2,3947.3,0.9861]
[1734027616641,0.8048,3948.0,3947.3,0.9861]
[1734027616828,0.55,3947.9,3947.3,0.9861]
[1734027617923,0.55,3948.5,3947.3,0.9861]
[1734027618123,1.60845253,3948.5,3947.3,0.9861]
[1734027618312,0.55,3948.3,3947.3,0.9861]
[1734027618848,1.60845253,3948.5,3947.3,0.9861]
[1734027619049,0.85099188,3948.4,3947.8,0.16]
[1734027619212,0.55,3948.3,3947.8,0.16]
[1734027620581,0.55,3948.3,3947.9,0.9549]
[1734027621951,0.55,3948.3,3947.9,1.1149]
[1734027622768,0.55,3948.3,3947.9,0.16]
[1734027622977,0.02534836,3948.2,3947.9,0.16]
[1734027624186,0.55,3948.0,3947.9,0.16]
[1734027624350,0.95928199,3948.0,3947.9,0.16]
[1734027624557,1.8089099,3948.0,3947.9,0.16]
[1734027624757,0.93393363,3948.0,3947.9,0.16]
[1734027624986,1.78353862,3948.0,3947.9,0.16]
[1734027625292,0.93393363,3948.0,3947.9,0.16]
[1734027625463,1.78356721,3948.0,3947.9,0.16]
[1734027626685,0.93393363,3948.0,3947.9,0.16]
[1734027628401,0.57534836,3948.3,3947.9,0.16]
[1734027628598,1.39953473,3948.3,3947.9,0.16]
[1734027628906,0.55,3948.1,3947.9,0.16]
[1734027629102,0.55,3948.3,3947.9,0.16]
[1734027629301,1.39954301,3948.3,3947.9,0.16]
[1734027629505,0.55,3948.1,3947.9,0.16]
[1734027630006,0.57534836,3948.1,3947.9,0.16]
[1734027630202,0.55,3948.1,3947.9,0.16]
[1734027630399,8.08032078,3948.0,3947.9,0.16]
[1734027630636,9.12038887,3948.0,3947.9,0.16]
[1734027630836,11.41831049,3948.0,3947.9,0.16]
[1734027631202,11.53242703,3948.0,3947.9,0.16]
[1734027631402,11.53250907,3948.0,3947.9,0.16]
[1734027631610,14.06542723,3948.0,3947.9,0.16]
[1734027632147,16.17915258,3948.0,3947.9,0.16]
[1734027632449,14.06542723,3948.0,3947.9,0.16]
[1734027632619,16.70964663,3948.0,3947.9,0.16]
[1734027633021,16.71298373,3948.0,3947.9,0.16]
[1734027635449,13.65161873,3948.0,3947.9,0.16]
[1734027636149,11.53397995,3948.0,3947.9,0.16]
[1734027637537,11.53471813,3948.0,3947.9,0.16]
[1734027639564,13.65235481,3948.0,3947.9,0.16]
[1734027640431,14.06763813,3948.0,3947.9,0.16]
[1734027640632,16.71464577,3948.0,3947.9,0.16]
[1734027640933,11.53471813,3948.0,3947.9,0.16]
[1734027641128,13.65232569,3948.0,3947.9,0.16]
[1734027641328,14.18172577,3948.0,3947.9,0.16]
[1734027642080,13.65232698,3948.0,3947.9,0.16]
[1734027642242,10.87336355,3948.0,3947.9,0.16]
[1734027643229,10.98607224,3948.0,3947.9,0.16]
[1734027643555,11.53607224,3948.0,3947.9,0.16]
[1734027644860,16.71600243,3948.0,3947.9,0.16]
[1734027646246,14.06899224,3948.0,3947.9,0.16]
[1734027646549,14.06934007,3948.0,3947.9,0.16]
[1734027648339,8.89340018,3948.0,3947.9,0.16]
[1734027648569,11.01104622,3948.0,3947.9,0.16]
[1734027648927,11.01107063,3948.0,3947.9,0.16]
[1734027649150,8.89340018,3948.0,3947.9,0.16]
[1734027649663,11.01120245,3948.0,3947.9,0.16]
[1734027649862,8.89340018,3948.0,3947.9,0.16]
[1734027650227,11.01119636,3948.0,3947.9,0.16]
[1734027650433,8.89340018,3948.0,3947.9,0.16]
[1734027650632,11.01140639,3948.0,3947.9,0.16]
[1734027650870,5.08479644,3948.0,3947.9,0.16]
[1734027651085,7.97448804,3948.0,3947.9,0.16]
[1734027651259,8.08479644,3948.0,3947.9,0.16]
[1734027651569,8.50406095,3948.0,3947.9,0.16]
[1734027651734,9.03344176,3948.0,3947.9,0.16]
[1734027651937,10.20312266,3948.0,3947.9,0.16]
[1734027652140,8.08479644,3948.0,3947.9,0.16]
[1734027652673,10.73218346,3948.0,3947.9,0.16]
[1734027653172,9.03344176,3948.0,3947.9,0.16]
[1734027655374,6.79554761,3948.0,3947.9,0.16]
[1734027655549,10.61893121,3948.0,3947.9,0.16]
[1734027655753,11.42243121,3948.0,3947.9,0.16]
[1734027656177,8.88951121,3948.0,3947.9,0.16]
[1734027656673,9.8397725,3948.0,3947.9,0.16]
[1734027656874,11.5385142,3948.0,3947.9,0.16]
[1734027657050,10.7350142,3948.0,3947.9,0.16]
[1734027657257,8.08601121,3948.0,3947.9,0.16]
[1734027657461,9.0362725,3948.0,3947.9,0.16]
[1734027658226,6.38726951,3948.0,3947.9,0.16]
[1734027658428,9.03640378,3948.0,3947.9,0.16]
[1734027659090,8.08601121,3948.0,3947.9,0.16]
[1734027659310,6.38726951,3948.0,3947.9,0.16]
[1734027659622,9.03640378,3948.0,3947.9,0.16]
[1734027659985,9.03701182,3948.0,3947.9,0.16]
[1734027661724,10.73575352,3948.0,3947.9,0.16]
[1734027661923,9.03701182,3948.0,3947.9,0.16]
[1734027662306,6.38764583,3948.0,3947.9,0.16]
[1734027662503,9.03724804,3948.0,3947.9,0.16]
[1734027663112,9.03759092,3948.0,3947.9,0.16]
[1734027663826,8.08664519,3948.0,3947.9,0.16]
[1734027664006,8.92082349,3948.0,3947.9,0.16]
[1734027664207,10.61956519,3948.0,3947.9,0.16]
[1734027664440,10.61956519,3948.0,3945.3,2.09798017]
[1734027664441,0.55,3947.5,3946.5,1.0121]
[1734027664605,3.55,3946.5,3945.2,1.0121]
[1734027664810,1.61029614,3946.3,3945.4,1.0159]
[1734027665046,0.87545871,3946.2,3945.4,1.0159]
[1734027665247,0.57534836,3946.3,3945.4,1.0159]
[1734027665417,0.55,3946.3,3945.4,1.0159]
[1734027665740,0.02534836,3946.2,3945.4,1.14790132]
[1734027667807,0.02534836,3946.2,3945.4,1.0159]
[1734027668913,0.55,3946.0,3945.4,1.0159]
[1734027669107,0.02534836,3945.9,3945.4,1.0159]
[1734027672244,0.57534836,3945.9,3945.4,1.0159]
[1734027672422,0.02534836,3945.9,3945.4,1.0159]
[1734027672625,0.57534836,3946.1,3945.4,1.0159]
[1734027672839,0.55,3946.1,3945.4,1.0159]
[1734027673112,1.06029614,3946.8,3945.4,1.0159]
[1734027673312,0.84925923,3946.7,3945.4,1.0159]
[1734027673581,0.02534836,3946.8,3945.4,1.0159]
[1734027673858,0.02534836,3946.6,3945.4,1.0159]
[1734027674018,0.34622846,3946.6,3945.4,1.0159]
[1734027674211,1.39935387,3946.5,3945.4,1.0159]
[1734027674439,0.55,3946.5,3945.4,1.0159]
[1734027675456,0.55,3946.6,3945.4,1.0159]
[1734027675825,0.55,3946.7,3945.4,1.0159]
[1734027676341,4.43436451,3946.7,3945.4,1.0159]
[1734027676793,0.55,3946.5,3945.4,1.0159]
[1734027677359,0.55,3946.6,3945.4,1.0159]
[1734027678281,0.55,3946.4,3945.4,1.0159]
[1734027678600,0.02534836,3946.3,3945.4,1.0159]
[1734027678769,0.55,3946.1,3945.4,1.0159]
[1734027680694,0.02534836,3946.0,3945.4,1.0159]
[1734027682760,0.87451763,3946.0,3945.4,1.0159]
[1734027682982,0.55,3945.9,3945.4,1.0159]
[1734027683166,0.02534836,3945.8,3945.4,1.0159]
[1734027683369,0.55,3945.7,3945.4,1.0159]
[1734027683613,0.02534836,3945.6,3945.4,1.0159]
[1734027683819,0.02534836,3945.6,3944.2,0.9663]
[1734027684462,3.55,3945.7,3944.2,0.9663]
[1734027684671,0.02534836,3945.6,3944.2,0.9663]
[1734027684880,0.55,3945.4,3944.2,0.9663]
[1734027686068,0.02534836,3945.3,3944.2,0.9663]
[1734027686467,0.55,3945.4,3944.2,0.9663]
[1734027686468,0.57534836,3945.4,3944.2,0.9663]
[1734027688913,0.55,3945.2,3944.2,0.9663]
[1734027689221,0.02534836,3945.1,3944.2,0.9663]
[1734027689430,0.55,3944.9,3944.2,0.9663]
[1734027689610,0.02534836,3944.8,3944.2,0.9663]
[1734027691431,0.55,3944.9,3944.2,0.9663]
[1734027691632,0.55,3945.2,3944.2,0.9663]
[1734027691836,0.55,3945.4,3944.2,0.9663]
[1734027692037,1.34752368,3945.4,3944.2,0.9663]
[1734027692206,0.57534836,3945.6,3944.2,0.9663]
[1734027699069,2.64301989,3945.4,3944.2,0.9663]
[1734027699205,0.55,3945.1,3944.2,0.9663]
[1734027699408,0.02534836,3945.0,3944.2,0.9663]
[1734027699851,2.66836825,3945.0,3944.2,0.9663]
[1734027700011,3.95236683,3944.9,3944.2,0.9663]
[1734027700359,0.02534836,3944.8,3944.2,0.9663]
[1734027701744,3.95236683,3944.9,3944.2,0.9663]
[1734027702642,3.97771519,3944.9,3944.2,0.9663]
[1734027703011,3.95236683,3944.9,3944.2,0.9663]
[1734027703212,0.55,3944.7,3944.2,0.9663]
[1734027705339,0.02534836,3944.6,3944.2,0.9663]
[1734027706861,0.55,3944.7,3944.2,0.9663]
[1734027707348,0.02534836,3944.6,3942.8,0.30411318]
[1734027707552,0.55,3944.4,3942.9,1.0369]
[1734027707716,0.55,3944.4,3942.9,1.17100132]
[1734027707717,0.55,3944.2,3942.9,1.17100132]
[1734027709635,0.02534836,3944.1,3942.9,1.17100132]
[1734027712482,0.02534836,3944.1,3942.9,1.0369]
[1734027712781,3.02534836,3944.1,3942.9,1.0369]
[1734027712981,0.8053,3944.0,3942.9,1.0369]
[1734027713143,0.02534836,3943.9,3942.9,1.0369]
[1734027715384,0.8053,3944.0,3942.9,1.0369]
[1734027715563,0.02534836,3944.1,3942.9,1.0369]
[1734027715761,0.15187132,3944.0,3942.9,1.0369]
[1734027717309,0.57534836,3943.9,3942.9,1.0369]
[1734027720765,0.02534836,3943.9,3942.9,1.0369]
[1734027720977,0.55,3943.9,3942.9,1.0369]
[1734027722202,0.65953867,3944.8,3942.9,1.0369]
[1734027722388,0.8065,3945.0,3943.1,0.9654]
[1734027722566,0.02534836,3944.7,3943.1,0.9654]
[1734027723064,0.8065,3945.0,3943.1,0.9654]
[1734027723464,0.55,3944.9,3943.1,1.26951318]
[1734027723676,0.55,3944.9,3943.0,0.1650581]
[1734027723677,3.8065,3945.0,3943.3,0.9573]
[1734027723882,0.64495199,3944.9,3943.3,0.9573]
[1734027724601,0.02534836,3944.8,3943.3,0.9573]
[1734027724806,0.57534836,3944.8,3943.3,0.9573]
[1734027726954,5.69805241,3944.8,3943.3,0.9573]
[1734027727108,0.55,3944.8,3943.3,0.9573]
[1734027727437,0.63152317,3944.7,3943.3,0.9573]
[1734027727643,0.57534836,3944.6,3943.3,0.9573]
[1734027728109,0.55,3944.6,3943.3,0.9573]
[1734027728289,0.57534836,3944.6,3943.3,0.9573]
[1734027729506,3.57534836,3944.6,3943.3,0.9573]
[1734027729713,0.32217041,3944.5,3943.3,0.9573]
[1734027730423,0.02534836,3944.4,3943.3,0.9573]
[1734027730624,0.57534836,3944.4,3943.3,0.9573]
[1734027730824,3.55,3944.2,3943.3,0.9573]
[1734027731024,3.55,3944.0,3943.3,0.9573]
[1734027731224,0.55,3943.8,3943.3,0.9573]
[1734027731438,0.02534836,3943.7,3943.3,0.9573]
[1734027731743,0.55,3943.8,3943.3,0.9573]
[1734027732329,0.02534836,3943.7,3943.3,0.9573]
[1734027732528,0.57534836,3943.9,3943.3,0.9573]
[1734027732711,0.55,3943.7,3943.3,0.9573]
[1734027733818,0.02534836,3943.6,3943.3,0.9573]
[1734027734026,0.55,3943.7,3943.3,0.9573]
[1734027734215,0.02534836,3943.6,3943.3,0.9573]
[1734027734585,0.55,3943.7,3943.3,0.9573]
[1734027734709,0.2099209,3943.6,3943.3,0.9573]
[1734027736002,0.02534836,3943.5,3942.2,0.9971]
[1734027736208,0.57534836,3943.5,3942.2,0.9971]
[1734027737000,2.64301989,3943.9,3942.3,3.17152483]
[1734027737001,1.06029614,3943.9,3942.3,3.17152483]
[1734027737224,1.06029614,3944.2,3942.5,0.9849]
[1734027737444,4.06029614,3944.2,3942.7,0.9849]
[1734027737766,1.06029614,3944.5,3942.9,0.9849]
[1734027738077,0.02534836,3944.4,3942.9,0.9849]
[1734027738205,2.33523527,3944.5,3943.0,0.87438845]
[1734027738407,1.06029614,3944.8,3943.2,0.9849]
[1734027738646,0.61001451,3944.7,3943.4,0.9849]
[1734027739133,0.02534836,3944.9,3943.5,0.87394512]
[1734027739356,0.83678404,3944.8,3943.6,0.9849]
[1734027739640,0.02534836,3944.8,3943.6,0.9849]
[1734027740039,0.57534836,3944.8,3943.6,0.9849]
[1734027740339,4.6356445,3944.8,3943.6,0.9849]
[1734027740542,2.92381525,3944.7,3943.6,0.9849]
[1734027740777,0.02534836,3944.6,3943.6,0.9849]
[1734027741039,0.85714734,3944.7,3943.6,0.9849]
[1734027741624,3.85714734,3944.7,3943.6,0.9849]
[1734027741826,0.83703769,3944.6,3943.6,0.9849]
[1734027742018,0.02534836,3944.5,3943.6,0.9849]
[1734027743081,1.89749138,3944.4,3943.6,0.9849]
[1734027743355,3.70326213,3944.3,3943.6,0.9849]
[1734027743520,0.83740642,3944.2,3943.6,0.9849]
[1734027743839,0.55,3944.1,3943.6,0.9849]
[1734027744216,0.55,3944.0,3943.6,0.9849]
[1734027744419,0.54683891,3944.0,3943.6,0.9849]
[1734027744966,2.31644739,3944.2,3943.6,0.9849]
[1734027745160,3.17940472,3944.1,3943.6,0.9849]
[1734027745347,2.09376022,3944.0,3943.6,0.9849]
[1734027745523,0.50232174,3943.9,3943.6,0.9849]
[1734027746257,1.06029614,3944.0,3943.6,0.9849]
[1734027746456,2.34227743,3944.1,3943.6,0.9849]
[1734027746658,0.83772689,3944.0,3943.6,0.9849]
[1734027747030,1.06029614,3944.3,3943.6,0.9849]
[1734027747225,2.09426309,3945.2,3943.6,0.9849]
[1734027747226,1.06029614,3944.6,3943.6,0.9849]
[1734027747428,2.31669067,3944.7,3943.6,0.9849]
[1734027747624,0.8375833,3944.6,3943.6,0.9849]
[1734027747932,0.02534836,3944.7,3943.8,0.9837]
[1734027748129,0.83756295,3944.6,3943.8,0.9837]
[1734027748365,0.02534836,3944.7,3943.8,0.9837]
[1734027748366,1.92320745,3944.7,3943.8,0.9837]
[1734027748596,0.02534836,3944.5,3943.8,0.9837]
[1734027749926,2.31664706,3944.6,3943.8,0.9837]
[1734027750146,0.02534836,3944.5,3943.8,0.9837]
[1734027750357,0.83758213,3944.4,3943.8,0.9837]
[1734027750663,2.31667669,3944.6,3943.8,0.9837]
[1734027750966,3.15425539,3944.6,3943.8,0.9837]
[1734027751351,0.8375787,3944.5,3943.8,0.9837]
[1734027751534,4.06029614,3944.7,3943.8,0.9837]
[1734027751535,1.06029614,3944.7,3943.8,0.9837]
[1734027751864,1.89782777,3944.7,3943.8,0.9837]
[1734027752085,3.17947357,3944.7,3943.8,0.9837]
[1734027752288,1.89782777,3944.6,3943.8,0.9837]
[1734027753190,0.98902414,3944.7,3943.8,0.9837]
[1734027753380,0.83745347,3944.6,3943.8,0.9837]
[1734027753685,0.55,3944.7,3943.8,0.9837]
[1734027753847,1.06029614,3944.8,3943.8,0.9837]
[1734027753848,2.31644891,3944.8,3943.8,0.9837]
[1734027754050,1.06029614,3945.0,3943.8,0.9837]
[1734027754249,0.83733475,3944.9,3943.8,0.9837]
[1734027754453,0.02534836,3944.9,3944.0,1.0343]
[1734027754768,2.86629827,3945.0,3944.0,1.0343]
[1734027754972,0.02534836,3944.9,3944.0,1.0343]
[1734027755147,1.61029614,3945.0,3944.0,1.0343]
[1734027755351,0.83724362,3944.9,3944.0,1.0343]
[1734027757096,0.86259198,3944.9,3944.0,1.0343]
[1734027757384,2.44744289,3944.8,3944.0,1.0343]
[1734027757548,0.55,3944.6,3944.0,1.0343]
[1734027757754,3.70342905,3944.6,3944.0,1.0343]
[1734027757950,2.1183137,3944.5,3944.0,1.0343]
[1734027758185,0.37286098,3944.4,3944.0,1.0343]
[1734027758355,1.61029614,3944.6,3944.0,1.0343]
[1734027758554,0.83719701,3944.5,3944.0,1.0343]
[1734027758755,0.55,3944.6,3944.0,1.0343]
[1734027759052,0.83718029,3944.5,3944.0,1.0343]
[1734027759279,0.55,3944.6,3944.0,1.0343]
[1734027759457,1.00077076,3944.5,3944.0,1.0343]
[1734027759659,0.16356445,3944.5,3944.0,1.0343]
[1734027760171,0.18891281,3944.5,3944.0,1.0343]
[1734027760876,0.16356445,3944.5,3944.0,1.0343]
[1734027761097,0.86259346,3944.4,3944.0,1.0343]
[1734027761395,1.65095462,3944.3,3943.7,0.9817]
[1734027761568,0.02534836,3944.2,3943.7,0.9817]
[1734027761750,1.92295371,3944.2,3943.7,0.9817]
[1734027761953,0.83730921,3944.1,3943.7,0.9817]
[1734027762208,0.02534836,3944.0,3943.7,0.9817]
[1734027762721,0.55,3943.8,3942.7,0.9992]
[1734027763019,0.02534836,3943.7,3942.7,0.9992]
[1734027763491,0.55,3943.5,3942.7,0.9992]
[1734027763788,0.02534836,3943.4,3942.7,0.9992]
[1734027763994,0.55,3943.5,3942.7,0.9992]
[1734027764155,0.02534836,3943.4,3942.7,0.9992]
[1734027764696,0.55,3943.0,3942.2,1.0448]
[1734027765030,0.02534836,3942.9,3942.2,1.0448]
[1734027767769,0.55,3943.0,3942.2,1.0448]
[1734027767968,0.02534836,3942.9,3942.2,1.0448]
[1734027768273,0.55,3943.0,3942.2,1.0448]
[1734027768477,0.02534836,3942.9,3942.2,1.0448]
[1734027770632,0.02534836,3942.9,3940.9,4.35886809]
[1734027770633,0.02534836,3942.9,3941.0,0.9822]
[1734027770772,0.02534836,3942.9,3941.2,0.9641]
[1734027771573,0.55,3942.7,3941.2,0.9641]
[1734027771798,0.02534836,3942.6,3941.2,0.9641]
[1734027771999,0.55,3942.5,3941.2,0.9641]
[1734027772311,0.02534836,3942.4,3941.2,0.9641]
[1734027772929,0.55,3942.2,3941.2,0.9641]
[1734027775212,0.02534836,3942.1,3941.2,0.9641]
[1734027777100,0.55,3942.2,3941.2,0.9641]
[1734027778515,1.3564,3942.2,3941.2,0.9641]
[1734027778695,0.02534836,3942.1,3941.2,0.9641]
[1734027780809,1.3564,3942.2,3941.2,0.9641]
[1734027781586,0.55,3942.2,3941.2,0.9641]
[1734027783296,0.8055,3943.7,3941.3,1.053]
[1734027783497,0.8055,3943.5,3941.5,1.053]
[1734027784297,0.8055,3943.5,3941.5,1.35711318]
[1734027784525,0.8055,3943.5,3941.6,0.30411318]
[1734027784886,0.8055,3943.5,3941.7,1.0241]
[1734027785088,0.8055,3943.5,3941.4,0.13571132]
[1734027785089,0.8055,3943.5,3941.9,0.9735]
[1734027785489,0.8055,3943.9,3942.0,0.9735]
[1734027785714,0.8055,3943.9,3942.1,0.9735]
[1734027786026,0.8055,3943.9,3942.2,1.0159]
[1734027786926,0.8055,3943.9,3942.4,0.9596]
[1734027788301,0.55,3943.8,3942.4,0.9596]
[1734027788504,0.57534836,3943.8,3942.4,0.9596]
[1734027789192,0.55,3943.6,3942.4,0.9596]
[1734027789529,0.55,3943.3,3942.4,0.9596]
[1734027789900,0.57534836,3943.3,3942.4,0.9596]
[1734027790226,0.55,3943.3,3942.4,0.9596]
[1734027793423,0.57534836,3943.3,3942.4,0.9596]
[1734027793595,0.55,3943.1,3942.4,0.9596]
[1734027793967,0.02534836,3943.0,3942.4,0.9596]
[1734027794238,0.02534836,3943.2,3942.4,0.9596]
[1734027795513,0.55,3943.3,3942.4,0.9596]
[1734027796697,0.57534836,3943.3,3942.4,0.9596]
[1734027796935,0.55,3943.1,3942.4,0.9596]
[1734027797336,0.13808484,3943.2,3942.4,0.9596]
[1734027798938,0.02534836,3943.1,3942.4,0.9596]
[1734027802817,0.13808484,3943.2,3942.4,0.9596]
[1734027804025,0.8055,3943.8,3942.4,0.9596]
[1734027804345,0.83084836,3943.8,3942.4,0.9596]
[1734027804730,0.83601352,3943.7,3942.4,0.9596]
[1734027805240,5.09032907,3943.7,3942.4,0.9596]
[1734027805431,3.0,3943.7,3942.4,0.9596]
[1734027805744,1.32283543,3943.6,3942.4,0.9596]
[1734027805908,0.51192797,3943.6,3942.4,0.9596]
[1734027807219,0.83672748,3943.5,3942.4,0.9596]
[1734027807630,0.48657961,3943.6,3942.4,0.9596]
[1734027808455,0.83084836,3943.8,3942.4,0.9596]
[1734027808671,1.86579614,3944.2,3942.5,1.0134]
[1734027808836,2.64301989,3945.2,3942.6,1.0134]
[1734027808837,0.8055,3945.0,3942.6,1.0134]
[1734027809035,0.02534836,3944.9,3942.7,0.30411318]
[1734027809380,0.8055,3945.0,3942.8,1.0134]
[1734027809556,0.8055,3945.0,3942.9,1.4492645]
[1734027809761,0.02534836,3944.9,3942.9,1.4492645]
[1734027809956,0.02534836,3944.9,3942.9,0.4358645]
[1734027810169,3.02534836,3944.9,3942.5,0.30411318]
[1734027810472,3.02534836,3944.9,3942.6,1.0202]
[1734027810675,1.05970663,3944.4,3942.7,1.0202]
[1734027810979,1.05970663,3944.4,3942.8,1.0202]
[1734027811176,0.83674277,3944.3,3943.0,1.0202]
[1734027811331,1.05970663,3944.5,3943.2,1.0202]
[1734027811539,0.02534836,3944.4,3943.2,1.0202]
[1734027812109,1.64064721,3944.3,3943.2,1.0202]
[1734027812283,0.83654721,3944.2,3943.2,1.0202]
[1734027812500,1.05970663,3944.4,3943.2,1.0202]
[1734027812659,0.56492666,3944.3,3943.2,1.0202]
[1734027813186,0.02534836,3944.2,3943.2,1.0202]
[1734027813404,0.59027502,3944.3,3943.2,1.0202]
[1734027814876,0.56492666,3944.3,3943.2,1.0202]
[1734027815377,0.59027502,3944.3,3943.2,1.0202]
[1734027815576,0.18444728,3944.2,3943.2,1.0202]
[1734027817898,0.56492666,3944.3,3943.2,1.0202]
[1734027818195,3.0,3944.5,3943.2,1.0202]
[1734027818355,1.88915499,3944.6,3943.2,1.0202]
[1734027818689,3.0,3944.5,3943.2,1.0202]
[1734027818881,0.02534836,3944.4,3943.2,1.0202]
[1734027820310,0.86146482,3944.4,3943.2,1.0202]
[1734027820515,1.53406108,3944.3,3943.2,1.0202]
[1734027820712,0.02534836,3944.2,3943.2,1.0202]
[1734027822308,1.75765125,3944.3,3943.2,1.0202]
[1734027822529,0.83639827,3944.2,3943.2,1.0202]
[1734027822664,0.69794462,3944.3,3943.2,1.0202]
[1734027822865,1.31469461,3944.2,3943.2,1.0202]
[1734027823125,0.47829996,3944.2,3943.2,1.0202]
[1734027823283,1.25473887,3944.4,3943.2,1.0202]
[1734027823491,1.05970663,3945.0,3943.3,0.87357519]
[1734027823709,0.02534836,3945.1,3943.5,1.0429]
[1734027823999,0.02534836,3945.1,3943.7,1.0429]
[1734027824221,3.1434944,3945.3,3943.9,1.0426]
[1734027824364,0.83639161,3945.2,3943.9,1.0426]
[1734027824565,0.86173997,3945.2,3943.9,1.0426]
[1734027824765,0.02534836,3945.2,3943.9,1.0426]
[1734027825027,0.83615282,3945.1,3943.9,1.0426]
[1734027825310,0.27253078,3945.0,3943.9,1.0426]
[1734027825974,0.02534836,3944.9,3943.9,1.0426]
[1734027826299,0.27253078,3945.0,3943.9,1.0426]
[1734027831803,0.02534836,3945.2,3943.9,1.0426]
[1734027831989,1.05970663,3945.6,3943.9,1.0426]
[1734027832189,1.89412507,3945.6,3943.9,1.0426]
[1734027832406,0.83441844,3945.6,3943.9,1.0426]
[1734027832602,0.02534836,3945.7,3943.9,1.0426]
[1734027832921,5.75868414,3945.7,3943.9,1.0426]
[1734027833121,0.83418576,3945.6,3943.9,1.0426]
[1734027833322,0.02534836,3945.5,3943.9,1.0426]
[1734027833624,3.67321985,3945.7,3943.9,1.0426]
[1734027834629,0.67321985,3945.7,3943.9,1.0426]
[1734027835017,0.55370265,3945.6,3943.9,1.0426]
[1734027835216,0.02534836,3945.7,3943.9,1.0426]
[1734027835217,0.02534836,3945.5,3943.9,1.0426]
[1734027836106,0.8041,3945.3,3943.9,1.0426]
[1734027836311,0.02534836,3945.2,3943.9,1.0426]
[1734027838330,0.57534836,3945.2,3943.9,1.0426]
[1734027838918,0.55,3945.0,3943.9,1.0426]
[1734027839167,0.55,3944.8,3943.9,1.0426]
[1734027839344,0.83014836,3944.7,3943.9,1.0426]
[1734027839530,3.83014836,3944.7,3943.9,1.0426]
[1734027839740,0.55,3944.6,3943.9,1.0426]
[1734027839963,0.02534836,3944.5,3943.9,1.0426]
[1734027840145,0.43801484,3944.4,3943.9,1.0426]
[1734027840332,0.02534836,3944.3,3942.8,1.0548]
[1734027842761,0.55,3944.1,3942.8,1.0548]
[1734027842954,0.02534836,3944.0,3942.8,1.0548]
[1734027844858,0.55,3944.1,3942.8,1.0548]
[1734027845065,0.13801484,3944.0,3942.8,1.0548]
[1734027845428,0.55,3944.3,3942.8,1.0548]
[1734027845630,0.02534836,3944.2,3942.8,1.0548]
[1734027848576,0.55,3944.0,3942.8,1.0548]
[1734027848875,0.86056567,3943.9,3942.8,1.0548]
[1734027849077,0.37227073,3943.8,3942.8,1.0548]
[1734027849248,0.02534836,3943.9,3942.8,1.0548]
[1734027850780,3.83014836,3943.9,3942.8,1.0548]
[1734027851084,0.8353876,3943.8,3942.8,1.0548]
[1734027851279,0.02534836,3943.7,3942.8,1.0548]